[Event "Titled Tuesday Blitz June 20 Early 2023"]
[White "Spichkin, Alexander"]
[Black "Kochiev, Ivan"]
[WhiteFideId "4144074"]
[BlackFideId "2917890"]
[WhiteElo "1986"]
[BlackElo "2287"]
[Result "0-1"]
[Round "4"]
[TimeControl "180+2"]
[Date "2023.06.20"]
[WhiteClock "0:00:35"]
[BlackClock "0:00:03"]
[Board "162"]

1. f4 {[%clk 0:02:57]}  e5 {[%clk 0:02:58]} 2. e4 {[%clk 0:02:56]}  d5 {[%clk 0:02:56]} 3. exd5 {[%clk 0:02:55]}  e4 {[%clk 0:02:49]} 4. Nc3 {[%clk 0:02:53]}  Nf6 {[%clk 0:02:48]} 5. d3 {[%clk 0:02:53]}  Bb4 {[%clk 0:02:47]} 6. Bd2 {[%clk 0:02:51]}  Bxc3 {[%clk 0:02:43]} 7. Bxc3 {[%clk 0:02:51]}  Qxd5 {[%clk 0:02:40]} 8. Qe2 {[%clk 0:02:47]}  O-O {[%clk 0:02:19]} 9. Bxf6 {[%clk 0:02:43]}  gxf6 {[%clk 0:02:19]} 10. dxe4 {[%clk 0:02:39]}  Qa5+ {[%clk 0:02:18]} 11. Qd2 {[%clk 0:02:33]}  Qa4 {[%clk 0:02:19]} 12. Bd3 {[%clk 0:02:29]}  f5 {[%clk 0:02:04]} 13. e5 {[%clk 0:02:24]}  f6 {[%clk 0:01:46]} 14. Nf3 {[%clk 0:02:21]}  fxe5 {[%clk 0:01:46]} 15. Nxe5 {[%clk 0:02:21]}  Nc6 {[%clk 0:01:46]} 16. Nxc6 {[%clk 0:02:17]}  Qxc6 {[%clk 0:01:39]} 17. O-O-O {[%clk 0:02:16]}  Be6 {[%clk 0:01:39]} 18. a3 {[%clk 0:02:16]}  Rad8 {[%clk 0:01:36]} 19. Rhe1 {[%clk 0:02:14]}  Bf7 {[%clk 0:01:32]} 20. Re5 {[%clk 0:02:12]}  Bc4 {[%clk 0:01:22]} 21. Bxc4+ {[%clk 0:02:03]}  Qxc4 {[%clk 0:01:23]} 22. Qxd8 {[%clk 0:01:56]}  Rxd8 {[%clk 0:01:24]} 23. Rxd8+ {[%clk 0:01:56]}  Kg7 {[%clk 0:01:25]} 24. g3 {[%clk 0:01:55]}  Qf1+ {[%clk 0:01:19]} 25. Rd1 {[%clk 0:01:55]}  Qf2 {[%clk 0:01:16]} 26. Re7+ {[%clk 0:01:52]}  Kg6 {[%clk 0:01:12]} 27. Rxc7 {[%clk 0:01:52]}  Qb6 {[%clk 0:00:49]} 28. Rcd7 {[%clk 0:01:48]}  Qe3+ {[%clk 0:00:47]} 29. Kb1 {[%clk 0:01:48]}  h6 {[%clk 0:00:47]} 30. R1d6+ {[%clk 0:01:34]}  Kh5 {[%clk 0:00:39]} 31. Rh7 {[%clk 0:01:32]}  Qe1+ {[%clk 0:00:32]} 32. Ka2 {[%clk 0:01:32]}  Qe2 {[%clk 0:00:33]} 33. Rhxh6+ {[%clk 0:01:26]}  Kg4 {[%clk 0:00:32]} 34. Rhg6+ {[%clk 0:01:20]}  Kh3 {[%clk 0:00:28]} 35. Rh6+ {[%clk 0:01:18]}  Kg2 {[%clk 0:00:27]} 36. Rd3 {[%clk 0:01:09]}  Qxc2 {[%clk 0:00:26]} 37. Rc3 {[%clk 0:01:10]}  Qe4 {[%clk 0:00:23]} 38. Rd6 {[%clk 0:01:08]}  a5 {[%clk 0:00:21]} 39. h4 {[%clk 0:01:06]}  Qe7 {[%clk 0:00:18]} 40. Rd2+ {[%clk 0:01:02]}  Kh3 {[%clk 0:00:18]} 41. h5 {[%clk 0:01:02]}  Qf7+ {[%clk 0:00:18]} 42. Kb1 {[%clk 0:00:59]}  Qxh5 {[%clk 0:00:18]} 43. Rcc2 {[%clk 0:00:59]}  Kg4 {[%clk 0:00:17]} 44. Rc3 {[%clk 0:00:58]}  Qf7 {[%clk 0:00:15]} 45. Rd6 {[%clk 0:00:56]}  Qe7 {[%clk 0:00:12]} 46. Rg6+ {[%clk 0:00:55]}  Kh3 {[%clk 0:00:05]} 47. g4+ {[%clk 0:00:53]}  Kh4 {[%clk 0:00:06]} 48. gxf5 {[%clk 0:00:49]}  Qe4+ {[%clk 0:00:06]} 49. Ka2 {[%clk 0:00:49]}  Qxf5 {[%clk 0:00:07]} 50. Rh6+ {[%clk 0:00:48]}  Kg4 {[%clk 0:00:07]} 51. Rhh3 {[%clk 0:00:47]}  Qxf4 {[%clk 0:00:05]} 52. Rhd3 {[%clk 0:00:47]}  Qf7+ {[%clk 0:00:05]} 53. Kb1 {[%clk 0:00:47]}  b5 {[%clk 0:00:05]} 54. Rd4+ {[%clk 0:00:46]}  Kg5 {[%clk 0:00:04]} 55. Rc5+ {[%clk 0:00:46]}  Kg6 {[%clk 0:00:02]} 56. Rg4+ {[%clk 0:00:44]}  Kh6 {[%clk 0:00:02]} 57. Rh4+ {[%clk 0:00:44]}  Kg6 {[%clk 0:00:02]} 58. Rhh5 {[%clk 0:00:41]}  Qf1+ {[%clk 0:00:02]} 59. Ka2 {[%clk 0:00:41]}  a4 {[%clk 0:00:01]} 60. Rhg5+ {[%clk 0:00:41]}  Kf6 {[%clk 0:00:01]} 61. Rxb5 {[%clk 0:00:41]}  Qc4+ {[%clk 0:00:02]} 62. Kb1 {[%clk 0:00:39]}  Ke6 {[%clk 0:00:02]} 63. Rge5+ {[%clk 0:00:39]}  Kd6 {[%clk 0:00:02]} 64. Red5+ {[%clk 0:00:38]}  Ke6 {[%clk 0:00:02]} 65. Re5+ {[%clk 0:00:38]}  Kf6 {[%clk 0:00:03]} 66. Re1 {[%clk 0:00:37]}  Qd3+ {[%clk 0:00:03]} 67. Ka1 {[%clk 0:00:37]}  Qxb5 {[%clk 0:00:04]} 68. Rc1 {[%clk 0:00:36]}  Ke5 {[%clk 0:00:04]} 69. Rc3 {[%clk 0:00:36]}  Kd4 {[%clk 0:00:04]} 70. Ka2 {[%clk 0:00:36]}  Qd5+ {[%clk 0:00:05]} 71. Kb1 {[%clk 0:00:36]}  Qg2 {[%clk 0:00:04]} 72. Rc2 {[%clk 0:00:34]}  Qe4 {[%clk 0:00:03]} 73. Kc1 {[%clk 0:00:35]}  Qe1# {[%clk 0:00:03]} 0-1


[Site "https://www.chess.com"]

[Event "Titled Tuesday Blitz June 20 Early 2023"]
[White "Rosenberg, Evan S"]
[Black "Zaragatski, Ilja"]
[WhiteFideId "2019299"]
[BlackFideId "4655192"]
[WhiteElo "2345"]
[BlackElo "2460"]
[Result "0-1"]
[Round "4"]
[TimeControl "180+2"]
[Date "2023.06.20"]
[WhiteClock "0:00:51"]
[BlackClock "0:00:23"]
[Board "164"]

1. d4 {[%clk 0:03:00]}  d6 {[%clk 0:02:56]} 2. e4 {[%clk 0:03:00]}  Nf6 {[%clk 0:02:56]} 3. Nc3 {[%clk 0:02:59]}  e5 {[%clk 0:02:56]} 4. dxe5 {[%clk 0:02:59]}  dxe5 {[%clk 0:02:57]} 5. Qxd8+ {[%clk 0:02:58]}  Kxd8 {[%clk 0:02:58]} 6. Bc4 {[%clk 0:02:58]}  Ke8 {[%clk 0:02:56]} 7. f4 {[%clk 0:02:54]}  Bd6 {[%clk 0:02:26]} 8. Nf3 {[%clk 0:02:50]}  Nbd7 {[%clk 0:02:20]} 9. f5 {[%clk 0:02:42]}  c6 {[%clk 0:02:15]} 10. g4 {[%clk 0:02:39]}  b5 {[%clk 0:02:14]} 11. Bd3 {[%clk 0:02:36]}  Nc5 {[%clk 0:02:11]} 12. g5 {[%clk 0:02:32]}  Nh5 {[%clk 0:02:10]} 13. Be3 {[%clk 0:02:26]}  Nxd3+ {[%clk 0:01:36]} 14. cxd3 {[%clk 0:02:24]}  a6 {[%clk 0:01:34]} 15. O-O-O {[%clk 0:02:12]}  c5 {[%clk 0:01:31]} 16. Nd5 {[%clk 0:02:12]}  Bb7 {[%clk 0:01:30]} 17. Kb1 {[%clk 0:01:58]}  Rc8 {[%clk 0:01:15]} 18. Rc1 {[%clk 0:01:56]}  Nf4 {[%clk 0:01:10]} 19. Nxf4 {[%clk 0:01:52]}  exf4 {[%clk 0:01:10]} 20. Bf2 {[%clk 0:01:48]}  Kd7 {[%clk 0:01:05]} 21. Rhe1 {[%clk 0:01:43]}  Rhe8 {[%clk 0:01:04]} 22. Ng1 {[%clk 0:01:33]}  c4 {[%clk 0:01:00]} 23. dxc4 {[%clk 0:01:19]}  Bxe4+ {[%clk 0:00:57]} 24. Ka1 {[%clk 0:01:19]}  Rxc4 {[%clk 0:00:49]} 25. Rxc4 {[%clk 0:01:12]}  bxc4 {[%clk 0:00:48]} 26. f6 {[%clk 0:01:13]}  gxf6 {[%clk 0:00:48]} 27. gxf6 {[%clk 0:01:13]}  f3 {[%clk 0:00:37]} 28. Rd1 {[%clk 0:01:10]}  Kc6 {[%clk 0:00:36]} 29. h3 {[%clk 0:01:07]}  Rg8 {[%clk 0:00:36]} 30. Rd4 {[%clk 0:01:01]}  Bd5 {[%clk 0:00:35]} 31. Rg4 {[%clk 0:01:00]}  Rxg4 {[%clk 0:00:30]} 32. hxg4 {[%clk 0:01:00]}  Bc5 {[%clk 0:00:29]} 33. Nh3 {[%clk 0:00:58]}  Be6 {[%clk 0:00:22]} 34. Bxc5 {[%clk 0:00:54]}  Kxc5 {[%clk 0:00:22]} 35. Nf2 {[%clk 0:00:54]}  Kd4 {[%clk 0:00:23]} 36. g5 {[%clk 0:00:51]}  Ke3 {[%clk 0:00:23]} 0-1


[Site "https://www.chess.com"]

[Event "Titled Tuesday Blitz June 20 Early 2023"]
[White "Cardozo Munar, Carlos Eduardo"]
[Black "Kuznetsova, Olga"]
[WhiteFideId "4409477"]
[BlackFideId "4191323"]
[WhiteElo "2067"]
[BlackElo "2134"]
[Result "0-1"]
[Round "4"]
[TimeControl "180+2"]
[Date "2023.06.20"]
[WhiteClock "0:00:31"]
[BlackClock "0:01:24"]
[Board "166"]

1. d4 {[%clk 0:02:49]}  Nf6 {[%clk 0:02:53]} 2. Bg5 {[%clk 0:02:48]}  d6 {[%clk 0:02:50]} 3. Nd2 {[%clk 0:02:46]}  Nbd7 {[%clk 0:02:49]} 4. e4 {[%clk 0:02:46]}  h6 {[%clk 0:02:49]} 5. Bh4 {[%clk 0:02:45]}  e5 {[%clk 0:02:49]} 6. c3 {[%clk 0:02:42]}  Be7 {[%clk 0:02:49]} 7. Ngf3 {[%clk 0:02:42]}  O-O {[%clk 0:02:32]} 8. Bc4 {[%clk 0:02:42]}  c6 {[%clk 0:02:31]} 9. O-O {[%clk 0:02:41]}  exd4 {[%clk 0:02:12]} 10. cxd4 {[%clk 0:02:41]}  Nxe4 {[%clk 0:02:10]} 11. Bxe7 {[%clk 0:02:39]}  Qxe7 {[%clk 0:02:10]} 12. Re1 {[%clk 0:02:27]}  d5 {[%clk 0:02:10]} 13. Nxe4 {[%clk 0:02:28]}  dxe4 {[%clk 0:02:09]} 14. Nd2 {[%clk 0:02:28]}  Nf6 {[%clk 0:02:09]} 15. Qe2 {[%clk 0:02:22]}  Re8 {[%clk 0:02:05]} 16. Bd3 {[%clk 0:02:13]}  Qb4 {[%clk 0:01:55]} 17. Nxe4 {[%clk 0:02:11]}  Nxe4 {[%clk 0:01:47]} 18. Bxe4 {[%clk 0:02:12]}  Bf5 {[%clk 0:01:47]} 19. Qf3 {[%clk 0:01:52]}  Bxe4 {[%clk 0:01:46]} 20. Rxe4 {[%clk 0:01:53]}  Qxb2 {[%clk 0:01:46]} 21. Rae1 {[%clk 0:01:35]}  Rxe4 {[%clk 0:01:45]} 22. Qxe4 {[%clk 0:01:30]}  Qxa2 {[%clk 0:01:45]} 23. Qe7 {[%clk 0:01:30]}  Qb3 {[%clk 0:01:42]} 24. h4 {[%clk 0:01:28]}  a5 {[%clk 0:01:40]} 25. Re5 {[%clk 0:01:23]}  a4 {[%clk 0:01:38]} 26. Rf5 {[%clk 0:01:23]}  a3 {[%clk 0:01:37]} 27. Kh2 {[%clk 0:01:15]}  a2 {[%clk 0:01:33]} 28. d5 {[%clk 0:01:15]}  Rf8 {[%clk 0:01:32]} 29. d6 {[%clk 0:01:02]}  a1=Q {[%clk 0:01:29]} 30. d7 {[%clk 0:01:03]}  Qd4 {[%clk 0:01:25]} 31. g3 {[%clk 0:00:31]}  Qe6 {[%clk 0:01:24]} 0-1


[Site "https://www.chess.com"]

[Event "Titled Tuesday Blitz June 20 Early 2023"]
[White "Shapiro, Daniel"]
[Black "Goltseva, Ekaterina"]
[WhiteFideId "2001780"]
[BlackFideId "24173770"]
[WhiteElo "2334"]
[BlackElo "2114"]
[Result "0-1"]
[Round "4"]
[TimeControl "180+2"]
[Date "2023.06.20"]
[WhiteClock "0:00:00"]
[BlackClock "0:00:16"]
[Board "168"]

1. d4 {[%clk 0:03:00]}  d5 {[%clk 0:02:58]} 2. c4 {[%clk 0:02:59]}  dxc4 {[%clk 0:02:57]} 3. e4 {[%clk 0:02:58]}  b5 {[%clk 0:02:57]} 4. a4 {[%clk 0:02:52]}  c6 {[%clk 0:02:56]} 5. b3 {[%clk 0:02:44]}  e5 {[%clk 0:02:37]} 6. axb5 {[%clk 0:02:35]}  cxb5 {[%clk 0:01:56]} 7. bxc4 {[%clk 0:02:29]}  Qxd4 {[%clk 0:01:49]} 8. Qxd4 {[%clk 0:02:26]}  exd4 {[%clk 0:01:50]} 9. cxb5 {[%clk 0:02:26]}  Nf6 {[%clk 0:01:46]} 10. Bc4 {[%clk 0:02:04]}  Bb7 {[%clk 0:01:42]} 11. f3 {[%clk 0:02:04]}  Nbd7 {[%clk 0:01:35]} 12. Ne2 {[%clk 0:02:01]}  Bb4+ {[%clk 0:01:27]} 13. Bd2 {[%clk 0:01:54]}  Bc5 {[%clk 0:01:26]} 14. Nf4 {[%clk 0:01:02]}  Nb6 {[%clk 0:01:03]} 15. Be2 {[%clk 0:00:55]}  O-O {[%clk 0:00:58]} 16. Nd3 {[%clk 0:00:55]}  Be7 {[%clk 0:00:56]} 17. Bb4 {[%clk 0:00:52]}  Bxb4+ {[%clk 0:00:47]} 18. Nxb4 {[%clk 0:00:53]}  Nfd7 {[%clk 0:00:40]} 19. O-O {[%clk 0:00:47]}  Nc5 {[%clk 0:00:39]} 20. Rd1 {[%clk 0:00:44]}  f5 {[%clk 0:00:38]} 21. e5 {[%clk 0:00:39]}  f4 {[%clk 0:00:33]} 22. Rxd4 {[%clk 0:00:34]}  Nb3 {[%clk 0:00:32]} 23. Rc4 {[%clk 0:00:20]}  Nxa1 {[%clk 0:00:29]} 24. Rc7 {[%clk 0:00:20]}  Rf7 {[%clk 0:00:25]} 25. Rc3 {[%clk 0:00:16]}  Rc8 {[%clk 0:00:23]} 26. Nc6 {[%clk 0:00:16]}  Rfc7 {[%clk 0:00:17]} 27. Nd2 {[%clk 0:00:11]}  Bxc6 {[%clk 0:00:16]} 28. bxc6 {[%clk 0:00:10]}  Rxc6 {[%clk 0:00:17]} 29. Ra3 {[%clk 0:00:10]}  Nc2 {[%clk 0:00:17]} 30. Rxa7 {[%clk 0:00:09]}  Nd4 {[%clk 0:00:17]} 31. Bd3 {[%clk 0:00:08]}  Rc1+ {[%clk 0:00:15]} 32. Kf2 {[%clk 0:00:00]}  Rd1 {[%clk 0:00:16]} 0-1


[Site "https://www.chess.com"]

[Event "Titled Tuesday Blitz June 20 Early 2023"]
[White "Ardila, Oscar Humberto"]
[Black "Aggelis, Nikolaos"]
[WhiteFideId "4404742"]
[BlackFideId "4213220"]
[WhiteElo "1912"]
[BlackElo "2189"]
[Result "0-1"]
[Round "4"]
[TimeControl "180+2"]
[Date "2023.06.20"]
[WhiteClock "0:00:02"]
[BlackClock "0:01:24"]
[Board "173"]

1. d4 {[%clk 0:02:49]}  f5 {[%clk 0:02:59]} 2. c4 {[%clk 0:02:45]}  Nf6 {[%clk 0:02:56]} 3. Nc3 {[%clk 0:02:45]}  g6 {[%clk 0:02:56]} 4. Nf3 {[%clk 0:02:45]}  Bg7 {[%clk 0:02:56]} 5. g3 {[%clk 0:02:45]}  O-O {[%clk 0:02:57]} 6. Bg2 {[%clk 0:02:45]}  d6 {[%clk 0:02:57]} 7. d5 {[%clk 0:02:44]}  c6 {[%clk 0:02:57]} 8. O-O {[%clk 0:02:44]}  e5 {[%clk 0:02:57]} 9. dxe6 {[%clk 0:02:42]}  Bxe6 {[%clk 0:02:58]} 10. Qa4 {[%clk 0:02:26]}  Qc7 {[%clk 0:02:53]} 11. Bf4 {[%clk 0:02:25]}  Nh5 {[%clk 0:02:51]} 12. Bg5 {[%clk 0:02:23]}  h6 {[%clk 0:02:48]} 13. Bd2 {[%clk 0:02:20]}  Na6 {[%clk 0:02:47]} 14. b4 {[%clk 0:01:59]}  Bxc4 {[%clk 0:02:41]} 15. Rac1 {[%clk 0:01:52]}  d5 {[%clk 0:02:27]} 16. Rfe1 {[%clk 0:01:39]}  Rae8 {[%clk 0:02:25]} 17. e3 {[%clk 0:01:24]}  Kh7 {[%clk 0:02:25]} 18. Nd4 {[%clk 0:01:13]}  Qe7 {[%clk 0:02:22]} 19. a3 {[%clk 0:01:09]}  Nf6 {[%clk 0:02:17]} 20. b5 {[%clk 0:01:00]}  Nc5 {[%clk 0:02:16]} 21. Qxa7 {[%clk 0:00:51]}  Nd3 {[%clk 0:02:16]} 22. bxc6 {[%clk 0:00:49]}  bxc6 {[%clk 0:02:17]} 23. Qxe7 {[%clk 0:00:48]}  Rxe7 {[%clk 0:02:18]} 24. Nxc6 {[%clk 0:00:48]}  Rc7 {[%clk 0:02:11]} 25. Nd4 {[%clk 0:00:47]}  Nxe1 {[%clk 0:02:08]} 26. Bxe1 {[%clk 0:00:41]}  Rfc8 {[%clk 0:02:00]} 27. Rb1 {[%clk 0:00:38]}  Ne4 {[%clk 0:01:59]} 28. Nxe4 {[%clk 0:00:34]}  fxe4 {[%clk 0:02:00]} 29. Ne6 {[%clk 0:00:34]}  Bd3 {[%clk 0:01:51]} 30. Nxc7 {[%clk 0:00:26]}  Bxb1 {[%clk 0:01:49]} 31. Ba5 {[%clk 0:00:12]}  Be5 {[%clk 0:01:48]} 32. Nxd5 {[%clk 0:00:12]}  Rc1+ {[%clk 0:01:47]} 33. Bf1 {[%clk 0:00:13]}  Bd3 {[%clk 0:01:48]} 34. h3 {[%clk 0:00:13]}  Bxf1 {[%clk 0:01:45]} 35. Kh2 {[%clk 0:00:14]}  Be2 {[%clk 0:01:42]} 36. Nf4 {[%clk 0:00:08]}  Bf3 {[%clk 0:01:38]} 37. Ng2 {[%clk 0:00:07]}  Rc2 {[%clk 0:01:36]} 38. Kg1 {[%clk 0:00:07]}  Rc1+ {[%clk 0:01:36]} 39. Kh2 {[%clk 0:00:08]}  Ra1 {[%clk 0:01:36]} 40. Bb4 {[%clk 0:00:07]}  Bxg2 {[%clk 0:01:30]} 41. Kxg2 {[%clk 0:00:07]}  Bb2 {[%clk 0:01:31]} 42. g4 {[%clk 0:00:07]}  Bxa3 {[%clk 0:01:30]} 43. Bc3 {[%clk 0:00:08]}  Rc1 {[%clk 0:01:30]} 44. Bd4 {[%clk 0:00:08]}  Rc2 {[%clk 0:01:30]} 45. Kg3 {[%clk 0:00:08]}  g5 {[%clk 0:01:30]} 46. h4 {[%clk 0:00:08]}  Kg6 {[%clk 0:01:30]} 47. h5+ {[%clk 0:00:08]}  Kf7 {[%clk 0:01:30]} 48. Be5 {[%clk 0:00:08]}  Bb4 {[%clk 0:01:29]} 49. Bd4 {[%clk 0:00:08]}  Be1 {[%clk 0:01:28]} 50. Bb6 {[%clk 0:00:05]}  Rxf2 {[%clk 0:01:28]} 51. Kh3 {[%clk 0:00:05]}  Rf3+ {[%clk 0:01:24]} 52. Kg2 {[%clk 0:00:05]}  Bf2 {[%clk 0:01:24]} 53. Bd4 {[%clk 0:00:04]}  Bxe3 {[%clk 0:01:24]} 54. Be5 {[%clk 0:00:04]}  Bf4 {[%clk 0:01:24]} 55. Bd4 {[%clk 0:00:04]}  Rg3+ {[%clk 0:01:24]} 56. Kf2 {[%clk 0:00:04]}  Rxg4 {[%clk 0:01:24]} 57. Ke2 {[%clk 0:00:04]}  Rh4 {[%clk 0:01:25]} 58. Bc5 {[%clk 0:00:02]}  Rxh5 {[%clk 0:01:25]} 59. Kf1 {[%clk 0:00:03]}  Rh3 {[%clk 0:01:26]} 60. Kg1 {[%clk 0:00:03]}  Rd3 {[%clk 0:01:26]} 61. Kg2 {[%clk 0:00:03]}  Kg6 {[%clk 0:01:26]} 62. Kf2 {[%clk 0:00:03]}  Kf5 {[%clk 0:01:26]} 63. Ke2 {[%clk 0:00:03]}  h5 {[%clk 0:01:27]} 64. Kf2 {[%clk 0:00:04]}  h4 {[%clk 0:01:27]} 65. Kg2 {[%clk 0:00:04]}  g4 {[%clk 0:01:27]} 66. Bb6 {[%clk 0:00:04]}  Rg3+ {[%clk 0:01:26]} 67. Kf1 {[%clk 0:00:04]}  h3 {[%clk 0:01:26]} 68. Kf2 {[%clk 0:00:04]}  Rg2+ {[%clk 0:01:26]} 69. Kf1 {[%clk 0:00:05]}  Bg3 {[%clk 0:01:25]} 70. Be3 {[%clk 0:00:04]}  Bf4 {[%clk 0:01:24]} 71. Bd4 {[%clk 0:00:04]}  e3 {[%clk 0:01:24]} 72. Bc3 {[%clk 0:00:04]}  Ke4 {[%clk 0:01:25]} 73. Bb4 {[%clk 0:00:04]}  Kf3 {[%clk 0:01:25]} 74. Be1 {[%clk 0:00:04]}  h2 {[%clk 0:01:24]} 75. Bf2 {[%clk 0:00:04]}  Rxf2+ {[%clk 0:01:23]} 76. Ke1 {[%clk 0:00:02]}  g3 {[%clk 0:01:24]} 0-1


[Site "https://www.chess.com"]

[Event "Titled Tuesday Blitz June 20 Early 2023"]
[White "Samaganova, Aleksandra"]
[Black "Przybylski, Wojciech"]
[WhiteFideId "13800221"]
[BlackFideId "1117599"]
[WhiteElo "1858"]
[BlackElo "2228"]
[Result "1/2-1/2"]
[Round "4"]
[TimeControl "180+2"]
[Date "2023.06.20"]
[WhiteClock "0:00:07"]
[BlackClock "0:00:08"]
[Board "176"]

1. c4 {[%clk 0:03:00]}  c5 {[%clk 0:02:59]} 2. Nc3 {[%clk 0:02:59]}  Nc6 {[%clk 0:02:59]} 3. g3 {[%clk 0:02:59]}  g6 {[%clk 0:02:59]} 4. Bg2 {[%clk 0:02:59]}  Bg7 {[%clk 0:02:59]} 5. e3 {[%clk 0:02:59]}  e6 {[%clk 0:02:59]} 6. Nge2 {[%clk 0:02:59]}  Nge7 {[%clk 0:03:00]} 7. O-O {[%clk 0:02:59]}  O-O {[%clk 0:03:00]} 8. d4 {[%clk 0:02:58]}  b6 {[%clk 0:02:59]} 9. d5 {[%clk 0:02:58]}  exd5 {[%clk 0:02:59]} 10. cxd5 {[%clk 0:02:57]}  Nb4 {[%clk 0:02:56]} 11. a3 {[%clk 0:02:50]}  Na6 {[%clk 0:02:55]} 12. d6 {[%clk 0:02:43]}  Nc6 {[%clk 0:02:55]} 13. e4 {[%clk 0:02:32]}  c4 {[%clk 0:02:51]} 14. f4 {[%clk 0:02:28]}  Nc5 {[%clk 0:02:50]} 15. e5 {[%clk 0:02:27]}  Nd3 {[%clk 0:02:47]} 16. Nd5 {[%clk 0:02:16]}  b5 {[%clk 0:02:44]} 17. Ne7+ {[%clk 0:02:12]}  Kh8 {[%clk 0:02:43]} 18. Nc3 {[%clk 0:01:54]}  Qb6+ {[%clk 0:02:38]} 19. Kh1 {[%clk 0:01:49]}  Nf2+ {[%clk 0:02:34]} 20. Rxf2 {[%clk 0:01:48]}  Qxf2 {[%clk 0:02:35]} 21. Ne4 {[%clk 0:01:22]}  Qb6 {[%clk 0:02:29]} 22. Qe1 {[%clk 0:01:01]}  Bb7 {[%clk 0:02:16]} 23. Be3 {[%clk 0:00:59]}  Qd8 {[%clk 0:02:16]} 24. Nc5 {[%clk 0:00:54]}  Rb8 {[%clk 0:02:09]} 25. Nxb7 {[%clk 0:00:47]}  Rxb7 {[%clk 0:01:36]} 26. Nxc6 {[%clk 0:00:47]}  dxc6 {[%clk 0:01:35]} 27. Bxc6 {[%clk 0:00:47]}  Qc8 {[%clk 0:01:35]} 28. Bxb7 {[%clk 0:00:36]}  Qxb7+ {[%clk 0:01:35]} 29. Kg1 {[%clk 0:00:36]}  g5 {[%clk 0:01:35]} 30. Qf2 {[%clk 0:00:26]}  gxf4 {[%clk 0:01:35]} 31. Bxf4 {[%clk 0:00:26]}  a5 {[%clk 0:01:28]} 32. Rd1 {[%clk 0:00:23]}  b4 {[%clk 0:01:22]} 33. axb4 {[%clk 0:00:23]}  axb4 {[%clk 0:01:21]} 34. Qd4 {[%clk 0:00:23]}  c3 {[%clk 0:01:05]} 35. bxc3 {[%clk 0:00:23]}  b3 {[%clk 0:01:05]} 36. c4 {[%clk 0:00:19]}  Qd7 {[%clk 0:00:48]} 37. Rb1 {[%clk 0:00:16]}  Rb8 {[%clk 0:00:48]} 38. Rb2 {[%clk 0:00:16]}  Qg4 {[%clk 0:00:39]} 39. Kg2 {[%clk 0:00:15]}  Qe6 {[%clk 0:00:36]} 40. c5 {[%clk 0:00:15]}  f6 {[%clk 0:00:36]} 41. d7 {[%clk 0:00:09]}  Rd8 {[%clk 0:00:34]} 42. Qd6 {[%clk 0:00:04]}  Qf5 {[%clk 0:00:24]} 43. e6 {[%clk 0:00:02]}  Qe4+ {[%clk 0:00:24]} 44. Kh3 {[%clk 0:00:03]}  Bf8 {[%clk 0:00:23]} 45. Qd2 {[%clk 0:00:02]}  Qxe6+ {[%clk 0:00:23]} 46. Kg2 {[%clk 0:00:02]}  Rxd7 {[%clk 0:00:23]} 47. Qe2 {[%clk 0:00:02]}  Qd5+ {[%clk 0:00:18]} 48. Qf3 {[%clk 0:00:03]}  Qxc5 {[%clk 0:00:18]} 49. Rxb3 {[%clk 0:00:02]}  Rd8 {[%clk 0:00:13]} 50. Re3 {[%clk 0:00:03]}  Bg7 {[%clk 0:00:12]} 51. Re2 {[%clk 0:00:03]}  f5 {[%clk 0:00:12]} 52. Be3 {[%clk 0:00:04]}  Qb5 {[%clk 0:00:12]} 53. Rf2 {[%clk 0:00:04]}  Re8 {[%clk 0:00:12]} 54. Bf4 {[%clk 0:00:05]}  Qc4 {[%clk 0:00:10]} 55. h3 {[%clk 0:00:05]}  h6 {[%clk 0:00:10]} 56. g4 {[%clk 0:00:05]}  Rf8 {[%clk 0:00:09]} 57. g5 {[%clk 0:00:05]}  hxg5 {[%clk 0:00:09]} 58. Bxg5 {[%clk 0:00:06]}  Kg8 {[%clk 0:00:08]} 59. Qh5 {[%clk 0:00:06]}  f4 {[%clk 0:00:08]} 60. Qf3 {[%clk 0:00:07]}  Be5 {[%clk 0:00:07]} 61. h4 {[%clk 0:00:07]}  Qd4 {[%clk 0:00:07]} 62. Qg4 {[%clk 0:00:07]}  Rf7 {[%clk 0:00:06]} 63. Bh6+ {[%clk 0:00:06]}  Kh7 {[%clk 0:00:06]} 64. Bg5 {[%clk 0:00:07]}  Rg7 {[%clk 0:00:06]} 65. Qh5+ {[%clk 0:00:07]}  Kg8 {[%clk 0:00:06]} 66. Qe8+ {[%clk 0:00:08]}  Kh7 {[%clk 0:00:07]} 67. Qh5+ {[%clk 0:00:08]}  Kg8 {[%clk 0:00:07]} 68. Qg4 {[%clk 0:00:09]}  Qe4+ {[%clk 0:00:07]} 69. Qf3 {[%clk 0:00:08]}  Qf5 {[%clk 0:00:07]} 70. Qd5+ {[%clk 0:00:07]}  Kh7 {[%clk 0:00:07]} 71. Qf3 {[%clk 0:00:08]}  Bf6 {[%clk 0:00:07]} 72. Qh5+ {[%clk 0:00:05]}  Kg8 {[%clk 0:00:07]} 73. Qe8+ {[%clk 0:00:06]}  Kh7 {[%clk 0:00:07]} 74. Qh5+ {[%clk 0:00:06]}  Kg8 {[%clk 0:00:07]} 75. Qe8+ {[%clk 0:00:07]}  Kh7 {[%clk 0:00:08]} 76. Qh5+ {[%clk 0:00:07]} 1/2-1/2


[Site "https://www.chess.com"]

[Event "Titled Tuesday Blitz June 20 Early 2023"]
[White "Rios Escobar, Adan"]
[Black "mestrefeitosa19"]
[WhiteFideId "3403645"]
[WhiteElo "2486"]
[BlackElo "2307"]
[Result "1-0"]
[Round "4"]
[TimeControl "180+2"]
[Date "2023.06.20"]
[WhiteClock "0:00:03"]
[BlackClock "0:00:00"]
[Board "177"]

1. d4 {[%clk 0:03:00]}  d5 {[%clk 0:02:59]} 2. g3 {[%clk 0:03:00]}  e6 {[%clk 0:02:59]} 3. Bg2 {[%clk 0:02:57]}  Nf6 {[%clk 0:03:00]} 4. c4 {[%clk 0:02:57]}  Be7 {[%clk 0:03:00]} 5. Nf3 {[%clk 0:02:57]}  O-O {[%clk 0:03:01]} 6. O-O {[%clk 0:02:57]}  dxc4 {[%clk 0:02:55]} 7. Qc2 {[%clk 0:02:57]}  a6 {[%clk 0:02:55]} 8. a4 {[%clk 0:02:57]}  Nbd7 {[%clk 0:02:53]} 9. Rd1 {[%clk 0:02:55]}  a5 {[%clk 0:02:50]} 10. Na3 {[%clk 0:02:50]}  Nb6 {[%clk 0:02:50]} 11. Nxc4 {[%clk 0:02:45]}  Bd7 {[%clk 0:02:50]} 12. Nxb6 {[%clk 0:02:39]}  cxb6 {[%clk 0:02:50]} 13. Ne5 {[%clk 0:02:39]}  Rc8 {[%clk 0:02:48]} 14. Qb3 {[%clk 0:02:38]}  Bc6 {[%clk 0:02:41]} 15. Nxc6 {[%clk 0:02:37]}  bxc6 {[%clk 0:02:42]} 16. Bd2 {[%clk 0:02:04]}  Nd5 {[%clk 0:02:39]} 17. Rac1 {[%clk 0:02:01]}  Qd7 {[%clk 0:02:36]} 18. e4 {[%clk 0:01:58]}  Nb4 {[%clk 0:02:35]} 19. Be3 {[%clk 0:01:55]}  Rfd8 {[%clk 0:02:31]} 20. h4 {[%clk 0:01:55]}  h6 {[%clk 0:02:06]} 21. Bf3 {[%clk 0:01:54]}  b5 {[%clk 0:01:52]} 22. Kg2 {[%clk 0:01:50]}  Rb8 {[%clk 0:01:46]} 23. Bf4 {[%clk 0:01:41]}  Bd6 {[%clk 0:01:41]} 24. Be3 {[%clk 0:01:22]}  Qb7 {[%clk 0:01:21]} 25. axb5 {[%clk 0:01:17]}  Qxb5 {[%clk 0:01:16]} 26. e5 {[%clk 0:01:05]}  Bf8 {[%clk 0:01:12]} 27. Rd2 {[%clk 0:00:41]}  Nd5 {[%clk 0:01:12]} 28. Qd1 {[%clk 0:00:28]}  Bb4 {[%clk 0:01:04]} 29. Rdc2 {[%clk 0:00:23]}  Rb6 {[%clk 0:00:49]} 30. Be2 {[%clk 0:00:22]}  Qa4 {[%clk 0:00:35]} 31. Bc4 {[%clk 0:00:14]}  Be7 {[%clk 0:00:25]} 32. Ra1 {[%clk 0:00:11]}  Nxe3+ {[%clk 0:00:18]} 33. fxe3 {[%clk 0:00:11]}  Qb4 {[%clk 0:00:18]} 34. b3 {[%clk 0:00:09]}  Rbb8 {[%clk 0:00:13]} 35. Rca2 {[%clk 0:00:09]}  Ra8 {[%clk 0:00:12]} 36. Qg4 {[%clk 0:00:07]}  Qb6 {[%clk 0:00:12]} 37. Rf1 {[%clk 0:00:07]}  Bf8 {[%clk 0:00:09]} 38. Raf2 {[%clk 0:00:06]}  Ra7 {[%clk 0:00:08]} 39. Rxf7 {[%clk 0:00:04]}  Rxf7 {[%clk 0:00:05]} 40. Rxf7 {[%clk 0:00:04]}  Re8 {[%clk 0:00:00]} 41. Bxe6 {[%clk 0:00:03]} 1-0


[Site "https://www.chess.com"]